[Event "Turkish Women-ch Arzum 2022"]
[Site "Ayvalik"]
[Date "2022.03.07"]
[Round "4.29"]
[White "Guleryuz, Zeynep"]
[Black "Sezer, Ipek"]
[Result "1-0"]
[ECO "B20"]
[WhiteElo "1186"]
[BlackElo "1329"]
[Annotator "NA RC"]
[PlyCount "61"]
[EventDate "2022.03.04"]
[EventType "swiss"]
[EventCountry "TUR"]
[SourceTitle "playchess.com"]
[Source "ChessBase"]
[SourceQuality "1"]
[TimeControl "5400+30"]

1. e4 {[%emt 0:01:00]} c5 {[%emt 0:01:00]} 2. b3 {[%emt 0:00:00]} Nc6 {[%emt 0:01:30]} 3. Bb2 {[%emt 0:00:00]} Nf6 {[%emt 0:00:00]} 4. e5 {[%emt 0:00:30]} Nd5 {[%emt 0:00:00]} 5. Bc4 {[%emt 0:00:30]} Nb6 {[%emt 0:00:30]} 6. Na3 {[%emt 0:03:30]} e6 {[%emt 0:07:30]} 7. Nf3 {[%emt 0:12:30]} a6 {[%emt 0:05:30]} 8. Be2 {[%emt 0:09:30]} g6 {[%emt 0:02:30]} 9. Nc4 {[%emt 0:02:30]} Nxc4 {[%emt 0:01:30]} 10. Bxc4 {[%emt 0:00:30]} Bg7 {[%emt 0:00:00]} 11. Qe2 {[%emt 0:08:30]} d5 {[%emt 0:04:00]} 12. Bd3 {[%emt 0:00:00]} Qc7 {[%emt 0:03:30]} 13. O-O {[%emt 0:05:00]} O-O {[%emt 0:01:30]} 14. Rfe1 {[%emt 0:06:30]} b5 {[%emt 0:07:30]} 15. c4 {[%emt 0:01:30]} bxc4 {[%emt 0:00:30]} 16. bxc4 {[%emt 0:00:30]} d4 {[%emt 0:00:30]} 17. Be4 {[%emt 0:07:30]} Rb8 {[%emt 0:00:30]} 18. Rab1 {[%emt 0:02:30]} Nxe5 {[%emt 0:02:30]} 19. Ba3 {[%emt 0:03:30]} Nxf3+ {[%emt 0:25:30]} 20. Bxf3 {[%emt 0:03:30]} Bd7 {[%emt 0:00:30]} 21. Qd3 {[%emt 0:10:30]} Qa5 {[%emt 0:10:30]} 22. g4 {[%emt 0:09:23]} Bh6 {[%emt 0:05:45]} 23. Rxb8 {[%emt 0:03:50]} Rxb8 {[%emt 0:00:40]} 24. Re5 {[%emt 0:00:18]} Bxd2 {[%emt 0:07:22]} 25. Re2 {[%emt 0:05:53]} Bc3 {[%emt 0:01:38]} 26. Bc1 {[%emt 0:00:06]} Ba1 {[%emt 0:02:29]} 27. Bh6 {[%emt 0:01:43]} Qc3 {[%emt 0:01:18]} 28. Qe4 {[%emt 0:01:30]} Qxc4 {[%emt 0:03:05]} 29. Qe5 {[%emt 0:00:36]} Rb1+ {[%emt 0:00:11]} 30. Re1 {[%emt 0:00:06]} d3 {[%emt 0:02:38]} 31. Qd6 {[%emt 0:01:13]} 1-0

[Event "Turkish Women-ch Arzum 2022"]
[Site "Ayvalik"]
[Date "2022.03.07"]
[Round "4.33"]
[White "Bodur, Ilke Lal"]
[Black "Yalcin, Fahriye Zeynep"]
[Result "1-0"]
[ECO "C44"]
[WhiteElo "1151"]
[BlackElo "1260"]
[Annotator "NA RC"]
[PlyCount "67"]
[EventDate "2022.03.04"]
[EventType "swiss"]
[EventCountry "TUR"]
[SourceTitle "playchess.com"]
[Source "ChessBase"]
[SourceQuality "1"]
[TimeControl "5400+30"]

1. e4 {[%emt 0:01:00]} e5 {[%emt 0:05:00]} 2. Nf3 {[%emt 0:00:30]} Nc6 {[%emt 0:00:30]} 3. d4 {[%emt 0:00:00]} exd4 {[%emt 0:00:30]} 4. Bc4 {[%emt 0:00:00]} Bb4+ {[%emt 0:00:00]} 5. c3 {[%emt 0:00:00]} dxc3 {[%emt 0:00:00]} 6. bxc3 {[%emt 0:00:00]} Ba5 {[%emt 0:00:30]} 7. O-O {[%emt 0:00:00]} Nge7 {[%emt 0:06:30]} 8. Ng5 {[%emt 0:08:00]} d5 {[%emt 0:07:30]} 9. exd5 {[%emt 0:02:30]} Ne5 {[%emt 0:01:30]} 10. Bb3 {[%emt 0:08:30]} N7g6 {[%emt 0:08:30]} 11. f4 {[%emt 0:07:30]} Bb6+ {[%emt 0:02:30]} 12. Kh1 {[%emt 0:00:30]} Ng4 {[%emt 0:01:30]} 13. Ba3 {[%emt 0:17:30]} Nxf4 {[%emt 0:11:30]} 14. Qe1+ {[%emt 0:22:30]} Ne3 {[%emt 0:02:30]} 15. Rxf4 {[%emt 0:01:30]} Qxg5 {[%emt 0:00:30]} 16. Re4+ {[%emt 0:00:30]} Kd7 {[%emt 0:01:30]} 17. Ba4+ {[%emt 0:00:00]} c6 {[%emt 0:00:30]} 18. dxc6+ {[%emt 0:00:00]} bxc6 {[%emt 0:00:30]} 19. Re7+ {[%emt 0:01:30]} Kd8 {[%emt 0:01:30]} 20. Qd2+ {[%emt 0:00:00]} Qd5 {[%emt 0:00:30]} 21. Qxd5+ {[%emt 0:01:00]} cxd5 {[%emt 0:00:30]} 22. Rxf7 {[%emt 0:03:30]} Nf5 {[%emt 0:00:30]} 23. Bc6 {[%emt 0:05:30]} Rb8 {[%emt 0:04:30]} 24. Bc1 {[%emt 0:02:03]} Ne3 {[%emt 0:03:30]} 25. Na3 {[%emt 0:04:09]} Be6 {[%emt 0:02:30]} 26. Rf3 {[%emt 0:03:06]} Ng4 {[%emt 0:02:30]} 27. Bg5+ {[%emt 0:01:12]} Kc7 {[%emt 0:01:30]} 28. Re1 {[%emt 0:04:48]} Nf2+ {[%emt 0:02:30]} 29. Rxf2 {[%emt 0:00:42]} Bxf2 {[%emt 0:00:30]} 30. Rxe6 {[%emt 0:00:00]} Rb6 {[%emt 0:00:30]} 31. Nb5+ {[%emt 0:00:06]} Kc8 {[%emt 0:01:30]} 32. Nxa7+ {[%emt 0:01:25]} Kb8 {[%emt 0:00:00]} 33. Nb5 {[%emt 0:00:17]} Rc8 {[%emt 0:02:00]} 34. Bf4+ {[%emt 0:00:24]} 1-0

[Event "Turkish Women-ch Arzum 2022"]
[Site "Ayvalik"]
[Date "2022.03.08"]
[Round "5.4"]
[White "Ince, Safiye Oyku"]
[Black "Buyuk, Ecrin Efsa"]
[Result "1-0"]
[ECO "B11"]
[WhiteElo "1893"]
[BlackElo "1565"]
[Annotator "NA RC"]
[PlyCount "211"]
[EventDate "2022.03.04"]
[EventType "swiss"]
[EventCountry "TUR"]
[SourceTitle "playchess.com"]
[Source "ChessBase"]
[SourceQuality "1"]
[TimeControl "5400+30"]

{[%evp 8,162,65,75,65,68,83,80,81,90,135,106,112,102,113,83,97,89,85,82,32767,118,160,32767,172,32767,32767,221,239,230,246,247,240,263,297,350,269,279,218,94,88,98,118,52,56,53,76,74,81,66,34,32767,32767,32,32767,0,14,0,0,0,69,64,75,75,176,154,179,32767,32767,32767,32767,32767,32767,32767,32767,95,156,120,120,32767,32767,32767,32767,32767,32767,32767,32767,80,84,79,88,83,125,32767,32767,116,142,122,100,97,32767,87,32767,7,112,23,75,64,63,68,78,61,68,71,78,78,75,76,77,73,68,70,71,61,75,32767,32767,32767,32767,32767,32767,32767,32767,32767,870,613,521,492,547,32767,32767,32767,32767,412,242,-28000,27999,134,109,132,425,252,259,265,260,145,129]} 1. e4 {[%emt 0:01:00]} c6 {[%emt 0:01:00]} 2. Nc3 {[%emt 0:00:30]} d5 {[%emt 0:00:30]} 3. Nf3 {[%emt 0:00:00]} d4 {[%emt 0:05:30]} 4. Ne2 {[%emt 0:00:00]} c5 {[%emt 0:00:30]} 5. c3 {[%emt 0:00:00]} dxc3 {[%emt 0:06:30]} 6. Nxc3 {[%emt 0:00:00]} Nc6 {[%emt 0:03:30]} 7. Bb5 {[%emt 0:00:30]} Bd7 {[%emt 0:03:30]} 8. Bxc6 {[%emt 0:00:30]} bxc6 {[%emt 0:02:30]} ({Black should try} 8... Bxc6 9. O-O Nf6) 9. d4 {[%emt 0:04:30]} cxd4 {[%emt 0:05:30]} 10. Qxd4 {[%emt 0:02:30]} Qb6 {[%emt 0:08:30]} 11. Be3 {[%emt 0:03:30]} Qxd4 {[%emt 0:01:30]} 12. Bxd4 {[%emt 0:00:30]} f6 {[%emt 0:02:30]} 13. e5 {[%emt 0:04:30]} f5 {[%emt 0:11:30]} 14. Bc5 {[%emt 0:06:30]} g6 {[%emt 0:04:30]} 15. Rd1 {[%emt 0:15:30]} Bg7 {[%emt 0:02:30]} 16. O-O {[%emt 0:00:30]} h6 {[%emt 0:04:30]} 17. Rd2 {[%emt 0:08:30]} f4 {[%emt 0:14:49]} 18. Re1 {[%emt 0:07:30]} h5 {[%emt 0:05:47]} 19. e6 {[%emt 0:03:30]} Bc8 {[%emt 0:00:30]} 20. Ng5 {[%emt 0:00:00]} Nh6 {[%emt 0:01:31]} 21. Red1 {[%emt 0:07:00]} Ba6 {[%emt 0:07:20]} 22. Rd7 {[%emt 0:10:30]} Nf5 {[%emt 0:01:22]} 23. Rc7 {[%emt 0:06:45]} (23. Nce4 $18) 23... Be5 {[%emt 0:05:07]} 24. Rxa7 {[%emt 0:06:17]} ({Don't do} 24. Rxc6 Bb7 25. Nf7 Bxc6 $11) 24... O-O {[%emt 0:00:34]} 25. Rxa8 {[%emt 0:04:44]} (25. a4 $16) 25... Rxa8 {[%emt 0:00:01]} 26. Re1 {[%emt 0:00:47]} Bf6 {[%emt 0:01:02]} 27. Nge4 {[%emt 0:00:30]} Bg7 {[%emt 0:00:00]} 28. b3 {[%emt 0:00:53]} Bc8 {[%emt 0:00:21]} 29. Ne2 {[%emt 0:01:33]} Bxe6 {[%emt 0:00:06]} 30. Nxf4 {[%emt 0:00:33]} Bf7 {[%emt 0:00:12]} 31. a3 {[%emt 0:01:16]} e5 {[%emt 0:00:28]} 32. Nd3 {[%emt 0:00:44]} Bxb3 {[%emt 0:00:36]} 33. Nd2 {[%emt 0:00:33]} Bc2 {[%emt 0:00:07]} ({Better is} 33... Rd8 $11 34. Nxb3 Rxd3) 34. Nxe5 {[%emt 0:00:30]} Ra5 {[%emt 0:00:00]} (34... Rd8 $14 35. Ndf3 Rd5) 35. Nd7 {[%emt 0:00:27]} Bc3 {[%emt 0:00:41] [#]} (35... Bd4 $14 36. Bxd4 Nxd4) 36. Rc1 $1 {[%emt 0:00:50]} Bxd2 {[%emt 0:01:28]} 37. Rxc2 {[%emt 0:00:01]} Rb5 {[%emt 0:00:38]} 38. Kf1 {[%emt 0:00:11]} Rb1+ {[%emt 0:01:08]} 39. Ke2 {[%emt 0:00:30]} Bf4 {[%emt 0:00:04]} 40. g3 {[%emt 0:01:28]} Bc7 {[%emt 0:00:44]} 41. h4 {[%emt 0:02:14]} Ba5 {[%emt 0:01:33]} (41... Kf7 $142 42. Ra2 Rc1) 42. Kf3 {[%emt 0:00:18]} Bc7 {[%emt 0:00:11]} 43. Kg2 {[%emt 0:00:50]} Rd1 {[%emt 0:00:30]} 44. Nf6+ {[%emt 0:00:30]} Kf7 {[%emt 0:00:30]} 45. Ne4 {[%emt 0:00:30]} Rd3 {[%emt 0:00:30]} 46. a4 {[%emt 0:00:30]} Ke6 {[%emt 0:00:32] [#]} 47. Nc3 {[%emt 0:01:34]} (47. Ba7 $1 $18 {and White stays clearly on top.} Kd5 48. f3) 47... Nd4 {[%emt 0:00:30]} 48. Bxd4 {[%emt 0:00:51]} Rxd4 {[%emt 0:00:30]} 49. Ne2 {[%emt 0:00:00]} Rd6 {[%emt 0:00:00]} 50. Nf4+ {[%emt 0:00:48]} Kf7 {[%emt 0:00:07]} 51. Rb2 {[%emt 0:00:34]} (51. Rc3 $142) 51... Ba5 {[%emt 0:01:00]} 52. Rb7+ {[%emt 0:00:57]} Kf6 {[%emt 0:00:30]} 53. Ra7 {[%emt 0:00:00]} Be1 {[%emt 0:00:17]} 54. Kf1 {[%emt 0:00:54]} (54. Ra8 $18 {has better winning chances.}) 54... Bd2 {[%emt 0:00:42]} 55. a5 {[%emt 0:00:54]} (55. Ne2 $16) 55... c5 {[%emt 0:00:16] [#]} (55... Bxf4 $11 {remains equal.} 56. gxf4 Kf5) 56. Rc7 {[%emt 0:00:24]} (56. Ne2 $1 $16) 56... Bb4 {[%emt 0:01:05]} (56... Bxf4 $11 57. gxf4 Rd4) 57. Ke2 {[%emt 0:00:33]} Bxa5 {[%emt 0:00:57]} 58. Rxc5 {[%emt 0:00:02]} Bb6 {[%emt 0:00:11]} 59. Nd5+ {[%emt 0:01:06]} Kf7 {[%emt 0:00:30]} 60. Rb5 {[%emt 0:00:00]} Bd8 {[%emt 0:00:27]} 61. Rb7+ {[%emt 0:00:21]} Ke6 {[%emt 0:00:30]} 62. Nf4+ {[%emt 0:00:00]} Kf5 {[%emt 0:00:23]} 63. Rb5+ {[%emt 0:01:06]} Kf6 {[%emt 0:00:31]} 64. Rg5 {[%emt 0:00:08]} Kf7 {[%emt 0:00:30]} 65. Re5 {[%emt 0:00:00]} Bf6 {[%emt 0:00:30]} 66. Rb5 {[%emt 0:00:19]} Ba1 {[%emt 0:00:32]} 67. f3 {[%emt 0:00:01]} Bg7 {[%emt 0:00:44]} 68. Rb7+ {[%emt 0:00:11]} Kf6 {[%emt 0:00:29]} 69. g4 {[%emt 0:00:30]} hxg4 {[%emt 0:00:30]} 70. fxg4 {[%emt 0:00:00]} Bf8 $2 {[%emt 0:00:00]} (70... Bh6 $14) 71. g5+ {[%emt 0:00:20]} Ke5 {[%emt 0:00:39]} 72. Rf7 {[%emt 0:00:21]} Be7 {[%emt 0:00:13]} 73. Nxg6+ {[%emt 0:01:24]} Rxg6 {[%emt 0:00:30]} 74. Rxe7+ {[%emt 0:00:30]} Kf4 {[%emt 0:00:00]} 75. Kf2 {[%emt 0:00:00]} (75. Rf7+ $142 Kg4 76. Rf6) 75... Ra6 {[%emt 0:00:12]} 76. Re2 $4 {[%emt 0:00:47]} (76. Ke2 Kf5 77. Rh7) 76... Rb6 $4 {[%emt 0:00:40] [#]} (76... Kg4 77. Re4+ Kh5) 77. Kg2 {[%emt 0:00:11]} (77. Re8 $1 $18) 77... Kg4 {[%emt 0:01:09]} 78. Re4+ {[%emt 0:00:04]} Kf5 $2 {[%emt 0:00:31]} (78... Kh5 $16 {is a better defense.} 79. Kf3 Rb3+ 80. Kg2 Rd3) 79. Kf3 {[%emt 0:00:30]} Rb3+ {[%emt 0:00:27]} 80. Re3 {[%emt 0:00:14]} Rb1 {[%emt 0:00:00]} 81. Kg2 {[%emt 0:01:08]} (81. Ra3 $18) 81... Kg4 $16 {[%emt 0:00:32]} 82. Re4+ {[%emt 0:01:05]} Kf5 {[%emt 0:00:04]} 83. Rc4 {[%emt 0:00:31]} Rb3 {[%emt 0:00:45]} 84. Kf2 {[%emt 0:00:20]} Rh3 {[%emt 0:00:57]} 85. Ke2 {[%emt 0:00:11]} Ra3 {[%emt 0:01:07]} 86. Kd2 {[%emt 0:00:30]} Rh3 {[%emt 0:00:00]} 87. Rc5+ {[%emt 0:00:24]} Kg6 {[%emt 0:00:41]} 88. Rc6+ {[%emt 0:00:13]} Kf5 {[%emt 0:00:02]} 89. Rf6+ {[%emt 0:00:48]} Ke5 {[%emt 0:00:30]} 90. Rh6 {[%emt 0:00:30]} Kf5 {[%emt 0:00:00]} 91. g6 {[%emt 0:00:00]} Kf6 {[%emt 0:00:17]} 92. h5 {[%emt 0:00:00]} Kg7 {[%emt 0:01:08]} 93. Rh7+ {[%emt 0:00:00]} Kg8 {[%emt 0:00:13]} 94. Ke2 {[%emt 0:01:18]} Ra3 {[%emt 0:00:19]} 95. Kf2 {[%emt 0:00:07]} Rc3 {[%emt 0:00:52]} 96. Kg2 {[%emt 0:00:30]} Ra3 {[%emt 0:00:00]} 97. Kh2 {[%emt 0:00:27]} Rb3 {[%emt 0:00:02]} 98. h6 {[%emt 0:00:44]} Ra3 {[%emt 0:02:09]} 99. Rd7 {[%emt 0:01:22]} Ra2+ {[%emt 0:00:30]} 100. Kg3 {[%emt 0:00:30]} Ra3+ {[%emt 0:00:00]} 101. Kg4 {[%emt 0:00:00]} Ra4+ {[%emt 0:00:13]} 102. Kf5 {[%emt 0:00:26]} Ra5+ {[%emt 0:00:00]} 103. Ke6 {[%emt 0:00:00]} Ra6+ {[%emt 0:00:19]} 104. Rd6 {[%emt 0:00:21]} Ra8 {[%emt 0:00:00]} 105. Kf6 {[%emt 0:00:03]} Rf8+ {[%emt 0:00:05]} 106. Ke7 {[%emt 0:00:00]} 1-0

[Event "Turkish Women-ch Arzum 2022"]
[Site "Ayvalik"]
[Date "2022.03.08"]
[Round "5.7"]
[White "Kayis, Gulcan Sena"]
[Black "Akat, Elifnaz"]
[Result "0-1"]
[ECO "B21"]
[WhiteElo "1597"]
[BlackElo "1673"]
[Annotator "NA"]
[PlyCount "80"]
[EventDate "2022.03.04"]
[EventType "swiss"]
[EventCountry "TUR"]
[SourceTitle "playchess.com"]
[Source "ChessBase"]
[SourceQuality "1"]
[TimeControl "5400+30"]

1. e4 {[%emt 0:01:00]} c5 {[%emt 0:01:00]} 2. d4 {[%emt 0:00:30]} cxd4 {[%emt 0:00:30]} 3. c3 {[%emt 0:00:00]} dxc3 {[%emt 0:00:00]} 4. Nxc3 {[%emt 0:00:00]} Nc6 {[%emt 0:00:00]} 5. Nf3 {[%emt 0:00:30]} e6 {[%emt 0:00:30]} 6. Bc4 {[%emt 0:01:30]} a6 {[%emt 0:00:30]} 7. O-O {[%emt 0:00:30]} b5 {[%emt 0:00:30]} 8. Bb3 {[%emt 0:00:30]} Bb7 {[%emt 0:03:30]} 9. Qe2 {[%emt 0:00:30]} Nge7 {[%emt 0:09:30]} 10. Rd1 {[%emt 0:09:30]} Ng6 {[%emt 0:00:30]} 11. Ng5 {[%emt 0:09:30]} Be7 {[%emt 0:11:30]} 12. Qh5 {[%emt 0:11:30]} Bxg5 {[%emt 0:08:30]} 13. Bxg5 {[%emt 0:01:30]} Nce7 {[%emt 0:00:30]} 14. Rd6 {[%emt 0:09:30]} h6 {[%emt 0:07:30]} 15. Be3 {[%emt 0:06:30]} Nc8 {[%emt 0:08:30]} 16. Rd2 {[%emt 0:08:30]} Qh4 {[%emt 0:08:30]} 17. Qc5 {[%emt 0:04:30]} d6 {[%emt 0:01:30]} 18. Qc7 {[%emt 0:07:30]} Qe7 {[%emt 0:01:30]} 19. Qa5 {[%emt 0:00:30]} Ne5 {[%emt 0:00:30]} 20. Ne2 {[%emt 0:03:30]} Bxe4 {[%emt 0:03:30]} 21. Qb4 {[%emt 0:01:30]} Bb7 {[%emt 0:06:30]} 22. Bf4 {[%emt 0:05:42]} Nc6 {[%emt 0:01:30]} 23. Qc3 {[%emt 0:00:16]} e5 {[%emt 0:02:30]} 24. Bd5 {[%emt 0:02:58]} N8a7 {[%emt 0:03:30]} 25. Ng3 {[%emt 0:04:45]} b4 {[%emt 0:02:08]} 26. Qf3 {[%emt 0:00:32]} O-O {[%emt 0:02:58]} 27. Nf5 {[%emt 0:02:22]} Qf6 {[%emt 0:04:47]} 28. Nxd6 {[%emt 0:00:45]} exf4 {[%emt 0:00:54]} 29. Nxb7 {[%emt 0:00:37]} Nd4 {[%emt 0:01:44]} 30. Qe4 {[%emt 0:02:15]} Nab5 {[%emt 0:00:59]} 31. Rad1 {[%emt 0:01:23]} Rae8 {[%emt 0:02:30]} 32. Qd3 {[%emt 0:00:20]} Rc8 {[%emt 0:02:16]} 33. Bc4 {[%emt 0:01:19]} f3 {[%emt 0:00:40]} 34. g3 {[%emt 0:01:56]} Ne2+ {[%emt 0:01:15]} 35. Kf1 {[%emt 0:01:03]} Nbd4 {[%emt 0:00:33]} 36. Na5 {[%emt 0:00:57]} Rfd8 {[%emt 0:01:06]} 37. Nb3 {[%emt 0:01:06]} Qg5 {[%emt 0:01:59]} 38. Nxd4 {[%emt 0:00:44]} Rxd4 {[%emt 0:00:07]} 39. Bxf7+ {[%emt 0:00:54]} Kh8 {[%emt 0:00:50]} 40. Qe3 {[%emt 0:01:33]} Rxd2 {[%emt 0:00:18]} 0-1

[Event "Turkish Women-ch Arzum 2022"]
[Site "Ayvalik"]
[Date "2022.03.08"]
[Round "5.8"]
[White "Bese, Irem"]
[Black "Acar, Ilayda"]
[Result "1-0"]
[ECO "A18"]
[WhiteElo "1714"]
[BlackElo "1460"]
[Annotator "NA"]
[PlyCount "109"]
[EventDate "2022.03.04"]
[EventType "swiss"]
[EventCountry "TUR"]
[SourceTitle "playchess.com"]
[Source "ChessBase"]
[SourceQuality "1"]
[TimeControl "5400+30"]

1. c4 {[%emt 0:01:00]} Nf6 {[%emt 0:01:00]} 2. Nc3 {[%emt 0:00:30]} e6 {[%emt 0:00:30]} 3. e4 {[%emt 0:00:00]} d6 {[%emt 0:01:30]} 4. d4 {[%emt 0:00:00]} c5 {[%emt 0:06:30]} 5. dxc5 {[%emt 0:04:30]} dxc5 {[%emt 0:00:30]} 6. Qxd8+ {[%emt 0:02:30]} Kxd8 {[%emt 0:00:30]} 7. Bg5 {[%emt 0:03:30]} Be7 {[%emt 0:09:30]} 8. O-O-O+ {[%emt 0:05:30]} Bd7 {[%emt 0:02:30]} 9. Bxf6 {[%emt 0:07:30]} gxf6 {[%emt 0:01:30]} 10. f4 {[%emt 0:01:30]} Nc6 {[%emt 0:04:30]} 11. Nf3 {[%emt 0:02:30]} a6 {[%emt 0:06:30]} 12. g3 {[%emt 0:13:30]} Kc7 {[%emt 0:03:30]} 13. Bg2 {[%emt 0:03:30]} Rad8 {[%emt 0:07:30]} 14. Rhe1 {[%emt 0:08:30]} Na5 {[%emt 0:02:30]} 15. Bf1 {[%emt 0:06:30]} Bc6 {[%emt 0:05:30]} 16. f5 {[%emt 0:07:30]} Rxd1+ {[%emt 0:03:30]} 17. Kxd1 {[%emt 0:00:30]} exf5 {[%emt 0:02:30]} 18. Nd5+ {[%emt 0:01:30]} Bxd5 {[%emt 0:04:30]} 19. exd5 {[%emt 0:00:30]} Bd6 {[%emt 0:02:30]} 20. Nh4 {[%emt 0:04:30]} f4 {[%emt 0:06:30]} 21. gxf4 {[%emt 0:03:30]} Bxf4 {[%emt 0:00:00]} 22. Re7+ {[%emt 0:00:30]} Kd8 {[%emt 0:01:00]} 23. Rxf7 {[%emt 0:00:30]} Be5 {[%emt 0:00:30]} 24. Nf5 {[%emt 0:03:00]} Ke8 {[%emt 0:04:30]} 25. Rg7 {[%emt 0:02:23]} Bxh2 {[%emt 0:03:59]} 26. b3 {[%emt 0:03:18]} h5 {[%emt 0:02:25]} 27. Bh3 {[%emt 0:00:59]} Bb8 {[%emt 0:03:20]} 28. Re7+ {[%emt 0:00:56]} Kd8 {[%emt 0:01:53]} 29. Rf7 {[%emt 0:00:50]} Be5 {[%emt 0:02:35]} 30. Ng7 {[%emt 0:00:24]} f5 {[%emt 0:01:51]} 31. Ne6+ {[%emt 0:00:38]} Ke8 {[%emt 0:00:36]} 32. Rxf5 {[%emt 0:00:12]} Bd6 {[%emt 0:01:12]} 33. Ng7+ {[%emt 0:01:54]} Ke7 {[%emt 0:00:45]} 34. Rf3 {[%emt 0:01:34]} Be5 {[%emt 0:03:01]} 35. Nf5+ {[%emt 0:01:21]} Kd8 {[%emt 0:01:56]} 36. Re3 {[%emt 0:01:02]} Re8 {[%emt 0:01:42]} 37. Nh6 {[%emt 0:01:34]} Re7 {[%emt 0:01:49]} 38. Rxe5 {[%emt 0:00:30]} Rxe5 {[%emt 0:00:30]} 39. Nf7+ {[%emt 0:00:00]} Ke7 {[%emt 0:00:00]} 40. Nxe5 {[%emt 0:00:00]} Kd6 {[%emt 0:00:15]} 41. Nf7+ {[%emt 0:01:22]} Ke7 {[%emt 0:00:04]} 42. Ng5 {[%emt 0:00:00]} b5 {[%emt 0:00:25]} 43. cxb5 {[%emt 0:01:42]} axb5 {[%emt 0:00:11]} 44. Bc8 {[%emt 0:00:22]} Kd6 {[%emt 0:00:34]} 45. Be6 {[%emt 0:01:44]} Nb7 {[%emt 0:01:00]} 46. Nf7+ {[%emt 0:00:07]} Ke7 {[%emt 0:00:00]} 47. Kc2 {[%emt 0:00:59]} Na5 {[%emt 0:00:31]} 48. Ne5 {[%emt 0:01:40]} Kd6 {[%emt 0:00:35]} 49. Nf3 {[%emt 0:00:59]} Ke7 {[%emt 0:01:24]} 50. Nd2 {[%emt 0:00:14]} Nb7 {[%emt 0:00:00]} 51. Ne4 {[%emt 0:00:17]} h4 {[%emt 0:00:28]} 52. Bh3 {[%emt 0:00:27]} Kd8 {[%emt 0:00:59]} 53. d6 {[%emt 0:00:13]} Nxd6 {[%emt 0:00:44]} 54. Nxd6 {[%emt 0:00:04]} b4 {[%emt 0:00:25]} 55. Ne4 {[%emt 0:00:05]} 1-0